bitfinex-derivatives/quotes_ETHF0:USTF0_20251213
["timestamp","ask_amount","ask_price","bid_price","bid_amount"]
[1765599508853,2.16102459,3088.6,3088.5,3.9577]
[1765599509060,1.4696,3088.4,3088.3,0.00705919]
[1765599509259,2.16102459,3088.4,3088.3,0.00705919]
[1765599514066,2.16176775,3088.4,3088.3,0.00705919]
[1765599519666,2.16182634,3088.4,3088.3,0.00705919]
[1765599527172,6.02782634,3088.4,3088.3,0.00705919]
[1765599532370,1.4638,3087.7,3087.6,3.2078]
[1765599532576,2.15602634,3087.7,3087.6,4.7061]
[1765599532776,1.45362634,3087.7,3087.6,4.7061]
[1765599533072,0.69222634,3087.7,3087.6,4.7061]
[1765599533268,0.69222634,3087.7,3087.6,4.71007391]
[1765599533474,1.45847882,3088.0,3087.9,1.4983]
[1765599534575,0.69707882,3088.0,3087.9,1.4983]
[1765599537477,1.45847882,3088.0,3087.9,1.4983]
[1765599538170,2.16087882,3088.0,3087.9,1.4983]
[1765599540377,2.16087882,3088.0,3087.9,0.7282]
[1765599540987,2.16087882,3088.0,3087.9,1.4983]
[1765599543479,1.45847882,3088.0,3087.9,1.4983]
[1765599546187,0.00485248,3088.0,3087.9,1.4983]
[1765599554390,0.76625248,3088.0,3087.9,1.4983]
[1765599556188,1.46865248,3088.0,3087.9,1.4983]
[1765599557696,0.76625248,3088.0,3087.9,1.4983]
[1765599558696,1.46865248,3088.0,3087.9,1.4983]
[1765599559196,0.76625248,3088.0,3087.9,1.4983]
[1765599561203,0.00485248,3088.0,3087.9,1.4983]
[1765599579819,1.50495248,3088.0,3087.9,1.4983]
[1765599580019,1.45389,3088.0,3087.9,1.4983]
[1765599584024,0.76185248,3088.0,3087.9,1.4983]
[1765599586221,0.00485248,3088.0,3087.9,1.4983]
[1765599586523,0.00485248,3088.0,3087.9,2.35230156]
[1765599593927,0.00485248,3088.0,3087.9,5.56010156]
[1765599601635,2.12795404,3088.0,3087.9,3.3697]
[1765599601842,2.12795404,3088.0,3087.9,3.9475]
[1765599602038,2.41115404,3088.0,3087.9,3.2078]
[1765599602223,2.12795404,3088.0,3087.9,3.2078]
[1765599602431,2.41115404,3088.0,3087.9,3.2078]
[1765599604632,2.12795404,3088.0,3087.9,3.9475]
[1765599605533,2.12795404,3088.0,3087.9,4.7117]
[1765599605938,2.12795404,3088.0,3087.9,3.2078]
[1765599607340,2.12795404,3088.0,3087.9,3.9475]
[1765599615946,2.12795404,3088.0,3087.9,4.7117]
[1765599616647,2.1280763,3088.0,3087.9,4.7117]
[1765599622240,1.4080763,3088.0,3087.9,4.7117]
[1765599622645,0.00485248,3088.0,3087.9,4.7117]
[1765599623145,0.6970763,3088.0,3087.9,4.7117]
[1765599624545,0.6970763,3088.0,3087.9,1.5039]
[1765599626452,0.00485248,3088.0,3087.9,1.5039]
[1765599640664,0.75635248,3088.0,3087.9,1.5039]
[1765599640865,1.48055248,3088.0,3087.9,1.5039]
[1765599641460,4.9516581,3089.2,3089.1,1.5036]
[1765599641764,3.21096546,3089.6,3089.5,1.9414]
[1765599641964,0.00316546,3089.6,3089.5,1.9414]
[1765599642355,0.00316546,3089.6,3089.5,5.1492]
[1765599642557,0.00316546,3089.6,3089.5,5.31102]
[1765599649866,0.00316546,3089.6,3089.5,6.00201526]
[1765599659776,0.00485248,3089.9,3089.8,1.6236]
[1765599660673,0.00779739,3089.9,3089.8,2.31459526]
[1765599660873,0.00779739,3089.9,3089.8,2.31697596]
[1765599662481,0.00779739,3089.9,3089.8,1.6259807]
[1765599664969,0.00779739,3089.9,3089.8,4.8337807]
[1765599669786,0.00779739,3089.9,3089.8,1.6259807]
[1765599669985,0.00779739,3089.9,3089.8,4.8337807]
[1765599673790,0.74249739,3089.9,3089.8,4.8337807]
[1765599674086,1.4781,3089.3,3089.2,0.00485248]
[1765599674983,1.4781,3089.3,3089.2,0.00795578]
[1765599676287,1.4781,3089.3,3089.2,0.74655578]
[1765599677090,1.4781,3089.3,3089.2,1.46975578]
[1765599683292,0.7347,3089.3,3089.2,1.46975578]
[1765599684688,3.973,3089.4,3089.3,1.4723]
[1765599684889,4.6938,3089.4,3089.3,1.4723]
[1765599686394,1.486,3089.3,3089.2,0.00795578]
[1765599697907,2.17754146,3089.3,3089.2,0.00795578]
[1765599699009,1.486,3088.7,3088.6,3.2078]
[1765599699312,2.17754146,3088.7,3088.6,3.2078]
[1765599699610,2.17754146,3088.7,3088.6,3.9371]
[1765599700002,2.17754146,3088.7,3088.6,3.94029116]
[1765599701709,2.17754146,3088.7,3088.6,0.73249116]
[1765599705015,2.17754146,3088.7,3088.6,1.47549116]
[1765599705406,0.69154146,3088.7,3088.6,1.47549116]
[1765599705609,2.17754146,3088.9,3088.6,0.00319116]
[1765599705910,2.17754146,3088.9,3088.8,1.4723]
[1765599713116,2.17754146,3088.9,3088.8,0.7293]
[1765599713511,2.17754146,3088.9,3088.8,1.4871]
[1765599714418,2.17777116,3088.9,3088.8,1.4871]
[1765599715523,1.5117,3088.7,3088.6,1.51359116]
[1765599716019,2.20347116,3088.7,3088.6,1.51359116]
[1765599720822,3.2078,3089.1,3089.0,1.9577]
[1765599721019,3.9825,3089.5,3089.4,1.5104]
[1765599721326,4.7195,3089.5,3089.4,1.5104]
[1765599722319,4.67427116,3089.5,3089.4,1.5104]
[1765599722919,5.41127116,3089.5,3089.4,1.5104]
[1765599724225,4.67427116,3089.5,3089.4,1.5104]
[1765599729828,5.41127116,3089.5,3089.4,1.5104]
[1765599739240,2.20347116,3089.5,3089.4,1.5104]
[1765599739942,5.41127116,3089.5,3089.4,0.7526]
[1765599740336,5.41127116,3089.5,3089.4,1.5104]
[1765599743643,4.67427116,3089.5,3089.4,1.5104]
[1765599743936,1.4538,3089.1,3089.0,0.16185]
[1765599744142,2.14557116,3089.1,3089.0,0.16185]
[1765599744332,2.14557116,3089.1,3089.0,1.63695]
[1765599745740,2.14557116,3089.1,3089.0,2.08065]
[1765599746642,1.4538,3089.1,3089.0,2.08065]
[1765599753857,0.7204,3089.1,3089.0,2.08065]
[1765599754257,1.4538,3089.1,3089.0,2.08065]
[1765599754955,3.3389,3089.5,3089.0,2.08065]
[1765599755151,3.3389,3089.5,3089.4,0.7243]
[1765599755152,4.7927,3089.5,3089.4,0.7243]
[1765599755348,4.7927,3089.5,3089.0,0.60555]
[1765599756155,2.14537375,3089.3,3089.2,1.4751]
[1765599759858,1.4538,3089.3,3089.2,1.4751]
[1765599760357,4.6616,3089.5,3089.4,1.4751]
[1765599761563,4.6616,3089.5,3089.4,0.7243]
[1765599769272,1.4538,3089.5,3089.4,0.7243]
[1765599769473,4.6616,3089.5,3089.4,0.7243]
[1765599772473,4.6616,3089.5,3089.4,1.4498]
[1765599773073,4.6616,3089.5,3089.4,0.7243]
[1765599777876,4.6616,3089.5,3089.4,1.4498]
[1765599778270,3.9282,3089.5,3089.4,1.4498]
[1765599780171,4.6372,3089.5,3089.4,1.4498]
[1765599780870,4.6372,3089.5,3089.4,0.7243]
[1765599781073,1.4843,3089.3,3089.2,0.16184]
[1765599781472,1.4843,3089.3,3089.2,0.89024]
[1765599782475,1.4843,3089.3,3089.2,1.61574]
[1765599789674,1.4843,3089.3,3089.2,0.16184]
[1765599789974,1.4843,3089.3,3089.2,0.89024]
[1765599791482,1.4843,3089.3,3089.2,1.61574]
[1765599803591,3.2078,3089.8,3089.7,1.5331]
[1765599803793,0.00779739,3089.9,3089.8,1.5331]
[1765599803988,1.455,3089.8,3089.7,0.16181]
[1765599807989,1.455,3089.8,3089.5,3.2078]
[1765599807990,1.455,3089.6,3089.5,3.2078]
[1765599808294,1.455,3089.6,3089.5,3.9666]
[1765599809298,1.455,3089.6,3089.5,0.7588]
[1765599811398,1.455,3089.6,3089.5,1.5331]
[1765599811598,1.455,3089.6,3089.5,0.7588]
[1765599820407,4.6628,3089.8,3089.7,1.5331]
[1765599828314,1.455,3089.8,3089.7,1.5331]
[1765599836222,0.78129739,3089.9,3089.8,1.4292]
[1765599836523,1.55549739,3089.9,3089.8,1.4292]
[1765599842422,0.00779739,3089.9,3089.8,1.4292]
[1765599842923,0.78129739,3089.9,3089.8,1.4292]
[1765599843226,0.00779739,3089.9,3089.8,2.12051395]
[1765599843432,0.00779739,3089.9,3089.8,2.12024013]
[1765599843727,0.78129739,3089.9,3089.8,2.12024013]
[1765599858335,0.00779739,3089.9,3089.8,2.12024013]
[1765599876143,0.00779739,3089.9,3089.8,2.12023757]
[1765599879839,0.00779739,3089.9,3089.8,1.4292]
[1765599888755,0.00779739,3089.9,3089.8,1.591]
[1765599907668,0.71639739,3089.9,3089.8,4.7988]
[1765599908069,0.00779739,3089.9,3089.8,4.7988]
[1765599917372,0.00779739,3089.9,3089.8,1.591]
[1765599917579,0.00779739,3089.9,3089.8,4.7988]
[1765599931897,0.18392,3090.9,3090.8,1.483]
[1765599932297,1.64092,3090.9,3090.8,1.483]
[1765599932900,1.64092,3090.9,3090.8,1.48646665]
[1765599933205,1.64470232,3090.9,3090.8,1.48646665]
[1765599956312,0.91180232,3090.9,3090.8,1.64821665]
[1765599957017,1.66500232,3090.9,3090.8,1.64821665]
[1765599960919,0.91180232,3090.9,3090.8,1.64821665]
[1765599963023,0.18770232,3090.9,3090.8,1.64821665]
[1765599972826,0.18770232,3090.9,3090.8,2.33879304]
[1765599974224,0.7575,3090.1,3090.0,5.1143]
[1765599974519,1.5107,3090.5,3090.4,1.4659]
[1765599974728,1.5107,3090.7,3090.6,1.4659]
[1765599975425,1.5107,3090.7,3090.6,1.46855737]
[1765599976726,1.5107,3090.7,3090.6,0.00265737]
[1765600003056,4.7185,3090.7,3090.6,0.00265737]
[1765600009264,3.9653,3090.7,3090.6,0.77705737]
[1765600009560,4.7013,3090.7,3090.6,0.00265737]
[1765600011666,1.4424,3090.4,3090.3,0.00485248]
[1765600012568,1.4424,3090.4,3090.3,0.00846437]
[1765600017371,1.4424,3090.4,3090.3,0.74146437]
[1765600021073,1.4424,3090.4,3090.3,0.00846437]
[1765600038689,0.7489,3089.7,3089.6,1.65471]
[1765600039588,0.7489,3089.7,3089.6,1.65712837]
[1765600041493,0.7489,3089.7,3089.6,1.91906013]
[1765600043193,0.7489,3089.7,3089.6,4.86492837]
[1765600043392,1.4651,3089.7,3089.6,4.86492837]
[1765600045694,0.7489,3089.7,3089.6,4.86492837]
[1765600047491,1.4651,3089.7,3089.6,4.86492837]
[1765600048893,0.7489,3089.7,3089.6,4.86492837]
[1765600053198,1.4661,3090.0,3089.9,1.4564]
[1765600055792,1.4661,3090.0,3089.9,0.7186]
[1765600056096,1.4661,3090.0,3089.9,1.4564]
[1765600061700,0.7499,3090.0,3089.9,1.4564]
[1765600062503,1.4661,3090.0,3089.9,1.4564]
[1765600068002,1.4661,3090.0,3089.9,0.7186]
[1765600068208,1.4661,3089.7,3089.6,4.09062837]
[1765600068609,1.4661,3089.7,3089.6,4.82842837]
[1765600071609,0.7499,3089.7,3089.6,4.82842837]
[1765600073410,3.2078,3090.3,3090.2,0.7385]
[1765600073614,3.2078,3090.3,3090.2,1.4549]
[1765600074210,3.2078,3090.3,3090.2,2.14612161]
[1765600074410,3.2078,3090.7,3090.5,0.433]
[1765600074616,3.866,3090.8,3090.7,1.4549]
[1765600074915,1.63560232,3090.9,3090.8,1.4549]
[1765600076305,0.18770232,3090.9,3090.8,2.14612161]
[1765600076911,0.92020232,3090.9,3090.8,2.14612161]
[1765600077510,1.63560232,3090.9,3090.8,1.4549]
[1765600080512,1.63560232,3090.9,3090.6,0.69122161]
[1765600080513,1.4479,3090.7,3090.6,0.7385]
[1765600080713,1.4479,3090.7,3090.6,1.4549]
[1765600081015,0.7325,3090.7,3090.6,1.4549]
[1765600081320,0.7325,3090.7,3090.6,2.14612161]
[1765600081510,0.7325,3090.7,3090.6,1.4549]
[1765600086816,1.4479,3090.7,3090.6,1.4549]
[1765600088221,0.7325,3090.7,3090.6,1.4549]
[1765600089819,0.18770232,3090.9,3090.4,4.10807]
[1765600089820,1.4479,3090.5,3090.4,4.10807]
[1765600090216,0.18770232,3090.9,3090.8,1.4549]
[1765600090418,1.63560232,3090.9,3090.8,0.7385]
[1765600090618,1.4479,3090.8,3090.7,1.42972161]
[1765600090926,1.4479,3090.6,3090.5,2.57912161]
[1765600091318,1.4479,3090.6,3090.5,1.8879]
[1765600092223,0.7325,3090.6,3090.5,1.8879]
[1765600093121,0.7325,3090.6,3090.5,2.57912161]
[1765600093416,1.63560232,3090.9,3090.8,1.4549]
[1765600094622,1.63560232,3090.9,3090.8,0.7385]
[1765600095422,1.63560232,3090.9,3090.8,1.4549]
[1765600096524,1.63560232,3090.9,3090.8,0.7385]
[1765600100423,1.63560232,3090.9,3090.8,1.4549]
[1765600111735,1.63560232,3090.9,3090.8,0.7385]
[1765600112232,1.63560232,3090.9,3090.8,1.4449]
[1765600112732,1.5181,3090.6,3090.4,3.2078]
[1765600112932,1.5181,3090.1,3090.0,5.091]
[1765600116436,0.7443,3090.1,3090.0,5.091]
[1765600118643,1.5181,3090.1,3090.0,5.091]
[1765600118941,1.5181,3090.1,3090.0,3.9516]
[1765600119141,2.20883062,3090.1,3090.0,3.2078]
[1765600121149,2.20883062,3090.1,3090.0,4.658]
[1765600122952,1.5181,3090.1,3090.0,5.0941]
[1765600123151,0.7443,3090.1,3090.0,5.0941]
[1765600123453,1.5181,3090.1,3090.0,5.0941]
[1765600125152,0.7443,3090.1,3090.0,5.0941]
[1765600126153,1.13788468,3090.5,3090.0,5.0941]
[1765600126357,2.65598468,3090.5,3090.4,0.7438]
[1765600127455,2.65598468,3090.5,3090.0,3.6439]
[1765600127854,0.7443,3090.1,3090.0,5.0941]
[1765600128056,0.7443,3090.1,3090.0,1.8863]
[1765600128256,1.5181,3090.1,3090.0,1.8863]
[1765600132057,1.5181,3090.1,3089.6,3.21021837]
[1765600132259,0.69108468,3090.2,3089.6,4.68791837]
[1765600132260,0.7573,3089.7,3089.6,4.68791837]
[1765600135661,0.69121354,3090.2,3089.6,4.68791837]
[1765600136453,0.69121354,3090.2,3089.6,1.48011837]
[1765600137160,4.7114,3090.1,3090.0,0.722]
[1765600140464,1.5036,3089.7,3089.6,1.48011837]
[1765600140964,1.5036,3089.7,3089.6,0.00241837]
[1765600141262,1.5036,3089.7,3089.6,0.72441837]
[1765600142165,1.5036,3089.7,3089.6,0.00241837]
[1765600142466,4.7114,3089.7,3089.6,0.00241837]
[1765600153773,1.5036,3089.1,3089.0,1.9214]
[1765600153971,1.5036,3089.1,3089.0,0.722]
[1765600154764,1.5036,3089.1,3089.0,0.72481853]
[1765600155169,1.5036,3089.1,3089.0,1.48051853]
[1765600155373,1.5036,3089.1,3089.0,1.94701853]
[1765600155575,0.7573,3089.1,3089.0,1.94701853]
[1765600156474,2.19481354,3089.3,3089.2,1.4777]
[1765600157776,1.44851354,3089.3,3089.2,1.4777]
[1765600158172,2.19481354,3089.3,3089.2,1.4777]
[1765600159472,1.5036,3089.1,3089.0,0.00281853]
[1765600159874,1.5036,3089.1,3089.0,0.74671853]
[1765600163183,1.5036,3089.1,3089.0,1.46691853]
[1765600163574,1.5036,3089.1,3089.0,0.74671853]
[1765600167584,4.7114,3089.1,3089.0,0.74671853]
[1765600172084,4.7114,3089.1,3089.0,0.00281853]
[1765600173591,4.7114,3089.1,3089.0,0.71651853]
[1765600174193,4.7114,3089.1,3089.0,1.87131853]
[1765600180392,10.7114,3089.1,3089.0,0.00281853]
[1765600180591,0.4524,3088.5,3087.1,3.2078]
[1765600180793,4.6301643,3087.7,3087.6,1.4339]
[1765600181099,5.3634643,3087.7,3087.6,1.4339]
[1765600181491,5.36588629,3087.7,3087.6,0.71744718]
[1765600182194,5.36588629,3087.7,3087.6,1.43764718]
[1765600183401,4.63258629,3087.7,3087.6,1.43764718]
[1765600183596,3.21022199,3087.7,3087.6,1.43764718]
[1765600183803,0.00242199,3087.7,3087.6,7.43764718]
[1765600184300,0.00242199,3087.7,3087.6,1.43764718]
[1765600184501,0.00242199,3087.7,3087.6,7.43764718]
[1765600184695,0.00242199,3087.7,3087.6,1.43764718]
[1765600185402,0.00242199,3087.7,3087.6,7.43764718]
[1765600185602,0.00242199,3087.7,3087.6,1.43764718]
[1765600186805,0.00242199,3087.7,3087.6,7.43764718]
[1765600187006,0.00242199,3087.7,3087.6,1.43764718]
[1765600188006,0.00242199,3087.7,3087.6,7.43764718]
[1765600188206,0.00242199,3087.7,3087.6,1.43764718]
[1765600188909,0.00242199,3087.7,3087.6,7.43764718]
[1765600189207,0.00242199,3087.7,3087.6,1.43764718]
[1765600189408,0.00242199,3087.7,3087.6,7.43764718]
[1765600191310,0.00242199,3087.7,3087.6,1.43764718]
[1765600191609,0.00242199,3087.7,3087.6,7.43764718]
[1765600195107,0.00242199,3087.7,3087.6,1.43764718]
[1765600201018,3.2078,3088.1,3088.0,1.9714]
[1765600202020,4.61539527,3088.1,3088.0,1.9714]
[1765600202617,5.38629527,3088.1,3088.0,1.9714]
[1765600203221,4.61539527,3088.1,3088.0,1.9714]
[1765600206823,5.38629527,3088.1,3088.0,1.9714]
[1765600207613,5.38629527,3088.1,3087.9,0.1619]
[1765600207814,1.4826,3088.0,3087.9,0.1619]
[1765600208020,1.4826,3087.7,3087.6,0.00374718]
[1765600208321,2.17476787,3087.7,3087.6,0.00374718]
[1765600208715,2.17476787,3087.7,3087.6,0.76764718]
[1765600211526,2.17476787,3087.7,3087.6,1.51344718]
[1765600222939,1.4826,3087.7,3087.6,1.51344718]
[1765600223142,2.17476787,3087.7,3087.6,1.51344718]
[1765600225747,1.40386787,3087.7,3087.6,1.51344718]
[1765600228551,2.11366787,3087.7,3087.6,1.51344718]
[1765600231553,2.11377687,3087.7,3087.6,1.51344718]
[1765600236764,1.40397687,3087.7,3087.6,1.51344718]
[1765600236963,4.6852,3087.9,3087.8,1.4784]
[1765600237166,5.37747687,3087.9,3087.8,1.4784]
[1765600239164,3.2078,3087.9,3087.8,1.4784]
[1765600239366,3.90007687,3087.9,3087.8,1.4784]
[1765600239666,4.66767687,3087.9,3087.8,1.4784]
[1765600240370,5.37747687,3087.9,3087.8,1.4784]
[1765600247872,5.37741814,3087.9,3087.8,1.4784]
[1765600248771,5.37741814,3087.9,3087.8,0.727]
[1765600249973,5.37741814,3087.9,3087.8,1.4784]
[1765600252477,2.16961814,3087.9,3087.8,1.4784]
[1765600252778,4.6852,3087.9,3087.8,1.4784]
[1765600253177,4.6852,3087.9,3087.8,0.727]
[1765600253373,1.4417,3087.7,3087.6,0.00374718]
[1765600253574,1.4417,3087.2,3087.1,4.7189]
[1765600253777,2.13391814,3087.2,3087.1,1.5111]
[1765600254779,2.13391814,3087.2,3087.1,1.51483102]
[1765600264487,1.4417,3087.2,3087.1,1.51483102]
[1765600284507,1.4417,3087.2,3087.1,1.48853102]
[1765600289003,1.4417,3087.2,3087.1,0.75853102]
[1765600289399,1.4417,3087.2,3087.1,1.48853102]
[1765600304516,0.7364,3087.2,3087.1,1.48853102]
[1765600306416,1.5021,3087.2,3087.1,1.48853102]
[1765600307923,2.19457277,3087.2,3087.1,1.48853102]
[1765600313022,2.19457277,3087.2,3087.1,0.75853102]
[1765600313423,2.19457277,3087.2,3087.1,1.48273102]
[1765600317125,2.19457277,3087.2,3087.1,0.75853102]
[1765600317323,2.19457277,3087.2,3087.1,0.00373102]
[1765600317726,2.19457277,3087.2,3087.1,0.73583102]
[1765600317921,2.19457277,3087.2,3087.1,0.00373102]
[1765600322430,2.19457277,3087.2,3086.3,0.89409]
[1765600322431,1.4563,3086.4,3086.3,0.89409]
[1765600322631,2.14877277,3086.4,3086.3,1.4563]
[1765600322932,1.4563,3086.1,3086.0,1.1938]
[1765600323129,1.4563,3085.7,3085.6,1.61832]
[1765600323530,1.45874722,3085.7,3085.6,1.62191366]
[1765600325334,2.15121999,3085.7,3085.6,0.73569366]
[1765600325528,2.15121999,3085.7,3085.6,1.45989366]
[1765600327138,1.40141999,3085.7,3085.6,1.45989366]
[1765600330138,0.00244722,3085.7,3085.6,1.45989366]
[1765600336046,0.00244722,3085.7,3085.6,2.15286446]
[1765600338344,0.00244722,3085.7,3085.6,1.45989366]
[1765600338646,0.70894722,3085.7,3085.6,1.45989366]
[1765600340850,1.45874722,3085.7,3085.6,0.73569366]
[1765600341358,1.45874722,3085.7,3085.6,1.48449366]
[1765600342654,2.15171802,3085.7,3085.6,1.48449366]
[1765600343246,1.45874722,3085.7,3085.6,1.48449366]
[1765600345453,1.45874722,3085.7,3085.6,0.73569366]
[1765600346855,2.15171802,3085.7,3085.6,0.00359366]
[1765600347754,2.15171802,3085.7,3085.6,0.73369366]
[1765600348956,0.70894722,3085.7,3085.6,1.45609366]
[1765600349850,0.70894722,3085.7,3085.6,2.14906446]
[1765600350046,0.75384722,3085.7,3085.6,2.14906446]
[1765600350451,0.00244722,3085.7,3085.6,2.14906446]
[1765600351050,0.00244722,3085.7,3085.6,1.45609366]
[1765600351357,0.00244722,3085.7,3085.6,2.14906446]
[1765600351959,0.00244722,3085.7,3085.6,1.45609366]
[1765600352162,0.75384722,3085.7,3085.6,2.14906446]
[1765600352862,0.00244722,3085.7,3085.6,2.14906446]
[1765600360464,0.00244722,3085.7,3085.6,2.31108446]
[1765600362866,0.00244722,3085.7,3085.6,2.31087356]
[1765600367869,0.00244722,3085.7,3085.6,2.31090332]
[1765600385594,0.76684722,3085.7,3085.6,2.31090332]
[1765600385896,0.00244722,3085.7,3085.6,2.31090332]
[1765600391497,0.76684722,3085.7,3085.6,2.31090332]
[1765600391897,0.00244722,3085.7,3085.6,2.31090332]
[1765600396395,0.00244722,3085.7,3085.6,2.31093418]
[1765600408611,3.2078,3086.2,3086.1,1.4585]
[1765600408908,3.2078,3086.2,3086.1,2.15132052]
[1765600409603,3.2105883,3086.2,3086.1,2.15132052]
[1765600410005,0.0027883,3086.2,3086.1,2.31332052]
[1765600411705,0.0027883,3086.2,3086.1,3.00614104]
[1765600412103,0.0027883,3086.2,3086.1,2.31332052]
[1765600412709,0.0027883,3086.2,3086.1,3.00614104]
[1765600412910,0.0027883,3086.2,3086.1,2.31332052]
[1765600414015,0.0027883,3086.2,3086.1,3.00614104]
[1765600414315,0.0027883,3086.2,3086.1,2.31332052]
[1765600414815,0.0027883,3086.2,3086.1,3.00614104]
[1765600423421,0.0027883,3086.2,3086.1,2.31332052]
[1765600424323,0.0027883,3086.2,3086.1,3.00614104]
[1765600427425,0.0027883,3086.2,3086.1,3.00534024]
[1765600427927,0.0027883,3086.2,3086.1,3.0053405]
[1765600431127,0.7704883,3086.2,3086.1,3.0053405]
[1765600431423,0.0027883,3086.2,3086.1,3.0053405]
[1765600433628,0.0027883,3086.2,3086.1,6.2131405]
[1765600442328,0.0027883,3086.2,3086.1,5.52072025]
[1765600442534,0.0027883,3086.2,3086.1,4.79312025]
[1765600442535,1.4368883,3086.2,3086.1,4.79312025]
[1765600442833,1.4368883,3086.2,3086.1,4.8532]
[1765600443032,1.4368883,3086.2,3086.1,4.1393]
[1765600443232,1.4368883,3086.2,3086.1,3.3698]
[1765600444529,1.4368883,3086.2,3086.1,4.1393]
[1765600445729,0.7115883,3086.2,3086.1,4.8532]
[1765600446128,1.4368883,3086.2,3086.1,4.8532]
[1765600449739,0.0027883,3086.2,3086.1,4.8532]
[1765600450140,0.7115883,3086.2,3086.1,4.8532]
[1765600450735,0.0027883,3086.2,3086.1,4.8532]
[1765600450938,0.0027883,3086.2,3086.1,5.54562025]
[1765600456240,4.6419,3087.0,3086.9,2.17582025]
[1765600456441,3.9166,3087.0,3086.9,2.17582025]
[1765600457044,4.6419,3087.0,3086.9,2.17582025]
[1765600457242,4.64420184,3087.0,3086.9,2.17582025]
[1765600457842,4.64420184,3087.0,3086.9,1.46192025]
[1765600459948,4.64420184,3087.0,3086.9,1.46187555]
[1765600462547,4.64420184,3087.0,3086.9,0.69237555]
[1765600463145,3.91890184,3087.0,3086.9,2.20877555]
[1765600464542,3.21010184,3087.0,3086.9,3.0631111]
[1765600464953,3.21010184,3087.0,3086.9,2.37073555]
[1765600465448,0.00230184,3087.0,3086.9,2.37073555]
[1765600466354,0.00230184,3087.0,3086.9,3.0631111]
[1765600468053,0.00230184,3087.0,3086.9,2.37073555]
[1765600469755,0.00230184,3087.0,3086.9,3.0631111]
[1765600473865,0.00230184,3087.0,3086.9,6.2709111]
[1765600474362,1e-08,3087.0,3086.9,6.2709111]
[1765600474567,0.00485248,3087.5,3086.9,6.2709111]
[1765600474568,0.00485248,3087.5,3087.2,1.67834]
[1765600474768,0.00485248,3087.5,3087.2,2.37071555]
[1765600475567,0.18701803,3087.3,3087.2,2.37071555]
[1765600480469,0.94671803,3087.3,3087.2,2.37071555]
[1765600480970,0.18701803,3087.3,3087.2,2.37071555]
[1765600482058,0.00485248,3087.5,3087.4,1.67833]
[1765600482367,0.00485248,3087.5,3087.4,5.57850555]
[1765600483064,0.00747523,3087.5,3087.4,5.57850555]
[1765600488973,0.00747523,3087.5,3087.4,2.37070555]
[1765600489174,0.00747523,3087.5,3087.4,5.57850555]
[1765600489875,0.00747523,3087.5,3087.4,5.57800656]
[1765600493479,0.00747523,3087.5,3087.4,5.57803235]
[1765600504681,3.2078,3088.1,3087.4,5.57803235]
[1765600504682,3.2078,3088.1,3088.0,1.9086]
[1765600504886,5.336,3088.4,3088.3,1.4669]
[1765600505084,5.336,3088.4,3088.3,2.15880235]
[1765600505679,5.33864694,3088.4,3088.3,2.1624416]
[1765600505985,5.33864694,3088.4,3088.3,1.4499416]
[1765600507690,5.33864694,3088.4,3088.3,0.6955416]
[1765600508984,5.33864694,3088.4,3088.3,1.4499416]
[1765600509987,1.47264694,3088.4,3088.3,1.4499416]
[1765600510390,1.47264694,3088.4,3088.3,2.1624416]
[1765600512889,1.47264694,3088.4,3088.3,1.4499416]
[1765600518297,1.47264694,3088.4,3088.3,0.00363925]
[1765600518897,1.47264694,3088.4,3088.3,0.75803925]
[1765600523696,0.70884694,3088.4,3088.3,2.2110416]
[1765600523902,0.00264694,3088.4,3088.3,2.2110416]
[1765600524501,0.00264694,3088.4,3088.3,2.21066554]
[1765600525502,0.00264694,3088.4,3088.3,2.37254554]
[1765600529698,0.00264694,3088.4,3088.3,9.93354554]
[1765600533107,0.00486057,3088.7,3088.6,1.63687]
[1765600533310,0.00486057,3088.7,3088.6,2.32839629]
[1765600534209,0.00721644,3088.7,3088.6,2.32839629]
[1765600534596,1.50501644,3088.7,3088.6,2.32839629]
[1765600541113,0.73411644,3088.7,3088.6,2.32839629]
[1765600541512,0.00721644,3088.7,3088.6,2.32839629]
[1765600548512,0.73411644,3088.7,3088.6,2.32839629]
[1765600549112,0.00721644,3088.7,3088.6,2.32839629]
[1765600551917,0.00721644,3088.7,3088.6,2.32841259]
[1765600552117,0.77631644,3088.7,3088.6,2.32841259]
[1765600552714,0.00721644,3088.7,3088.6,2.32841259]
[1765600558127,0.00721644,3088.7,3088.6,2.3284]
[1765600558924,0.77631644,3088.7,3088.6,2.3284]
[1765600559521,0.00721644,3088.7,3088.6,2.3284]
[1765600561425,0.77631644,3088.7,3088.6,2.3284]
[1765600562623,1.47871644,3088.7,3088.6,0.92857]
[1765600562826,1.4715,3088.4,3088.3,0.00363925]
[1765600563625,1.4715,3088.4,3088.3,0.77033925]
[1765600564422,1.4715,3088.4,3088.3,0.00363925]
[1765600565930,1.4715,3088.4,3088.3,0.77033925]
[1765600566323,1.4715,3088.4,3088.3,1.52053925]
[1765600568130,1.4715,3088.4,3088.3,0.77033925]
[1765600570433,1.4715,3088.4,3088.3,0.00363925]
[1765600570630,1.4715,3088.4,3088.3,0.77033925]
[1765600572033,1.4715,3088.4,3088.3,0.00363925]
[1765600575335,1.4715,3088.4,3088.3,1.52053925]
[1765600575736,1.4715,3088.4,3088.3,0.77033925]
[1765600576735,1.4715,3088.4,3088.3,1.52053925]
[1765600579133,1.4715,3088.4,3088.3,0.77033925]
[1765600579334,1.4715,3088.4,3088.3,0.00363925]
[1765600589144,1.4715,3088.4,3088.3,0.75883925]
[1765600590950,1.4715,3088.4,3088.3,1.50033925]
[1765600591146,0.7691,3088.4,3088.3,1.50033925]
[1765600595758,4.70311644,3088.7,3088.6,1.4967]
[1765600596355,4.70311644,3088.7,3088.6,0.7552]
[1765600596560,4.70311644,3088.7,3088.6,1.4967]
[1765600597061,4.70311644,3088.7,3088.6,0.7552]
[1765600599662,4.70311644,3088.7,3088.6,1.4967]
[1765600604775,4.70311644,3088.7,3088.6,0.7552]
[1765600605872,4.70311644,3088.7,3088.6,1.44709717]
[1765600611877,4.70311644,3088.7,3088.6,0.7552]
[1765600614076,1.424,3088.6,3088.5,1.2195]
[1765600615077,1.424,3088.6,3088.3,0.85714561]
[1765600615279,1.424,3088.4,3088.3,0.91711925]
[1765600615578,1.424,3088.4,3088.3,1.67801925]
[1765600620080,1.424,3088.4,3088.3,0.91711925]
[1765600620681,1.424,3088.4,3088.3,1.67801925]